[Event "Slovakia Open Piestany-A 2022"]
[Site "Piestany"]
[Date "2022.07.13"]
[Round "3"]
[White "Svanda, Adam"]
[Black "Toman, Ondrej"]
[Result "1-0"]
[ECO "A25"]
[WhiteElo "1918"]
[BlackElo "2276"]
[Annotator "ChessBase"]
[PlyCount "90"]
[EventDate "2022.07.12"]
[EventType "swiss"]
[EventCountry "SVK"]
[SourceTitle "playchess.com"]
[Source "ChessBase"]
[SourceQuality "1"]
[TimeControl "40/5400+30:1800+30"]

1. c4 {[%emt 0:00:10]} e5 {[%emt 0:00:03]} 2. Nc3 {[%emt 0:00:28]} Nf6 {[%emt 0:00:12]} 3. g3 {[%emt 0:00:10]} Nc6 {[%emt 0:00:07]} 4. Bg2 {[%emt 0:00:11]} Bb4 {[%emt 0:00:09]} 5. Nd5 {[%emt 0:00:40]} Bc5 {[%emt 0:01:29]} 6. e3 {[%emt 0:01:26]} O-O {[%emt 0:01:32]} 7. Ne2 {[%emt 0:00:38]} Re8 {[%emt 0:03:16]} 8. O-O {[%emt 0:03:28]} a5 {[%emt 0:04:21]} 9. d4 {[%emt 0:04:50]} Bf8 {[%emt 0:03:49]} 10. Nec3 {[%emt 0:03:37]} d6 {[%emt 0:04:42]} 11. b3 {[%emt 0:05:13]} Nb4 {[%emt 0:14:42]} 12. Bb2 {[%emt 0:04:00]} Nbxd5 {[%emt 0:06:55]} 13. Nxd5 {[%emt 0:01:26]} Nxd5 {[%emt 0:08:10]} 14. Bxd5 {[%emt 0:06:10]} c6 {[%emt 0:01:12]} 15. Bg2 {[%emt 0:00:34]} Qc7 {[%emt 0:02:34]} 16. Qc2 {[%emt 0:03:31]} g6 {[%emt 0:06:13]} 17. Rac1 {[%emt 0:06:01]} Bg7 {[%emt 0:02:12]} 18. Rfd1 {[%emt 0:09:20]} Qe7 {[%emt 0:10:58]} 19. dxe5 {[%emt 0:02:41]} dxe5 {[%emt 0:00:59]} 20. c5 {[%emt 0:00:59]} Bf5 {[%emt 0:00:57]} 21. e4 {[%emt 0:00:41]} Be6 {[%emt 0:01:12]} 22. Rd6 {[%emt 0:02:29]} Qg5 {[%emt 0:02:13]} 23. Rf1 {[%emt 0:08:21]} Qh5 {[%emt 0:09:32]} 24. Qc3 {[%emt 0:05:41]} Bh3 {[%emt 0:02:10]} 25. Bxh3 {[%emt 0:05:25]} Qxh3 {[%emt 0:00:02]} 26. Qf3 {[%emt 0:00:34]} Bf8 {[%emt 0:01:58]} 27. Rf6 {[%emt 0:04:46]} Bxc5 {[%emt 0:00:40]} 28. Rxf7 {[%emt 0:00:39]} Rf8 {[%emt 0:00:33]} 29. Rf6 {[%emt 0:03:04]} Bd4 {[%emt 0:05:00]} 30. Bxd4 {[%emt 0:01:29]} exd4 {[%emt 0:00:03]} 31. e5 {[%emt 0:01:03]} Qd7 {[%emt 0:01:46]} 32. Qd3 {[%emt 0:02:04]} Rxf6 {[%emt 0:01:40]} 33. exf6 {[%emt 0:00:08]} Kf7 {[%emt 0:00:36]} 34. Rd1 {[%emt 0:01:34]} Rd8 {[%emt 0:00:31]} 35. Qd2 {[%emt 0:02:42]} Kxf6 {[%emt 0:02:19]} 36. Qxa5 {[%emt 0:00:11]} Qd5 {[%emt 0:01:27]} 37. Qxd5 {[%emt 0:01:53]} Rxd5 {[%emt 0:00:30]} 38. Rd3 {[%emt 0:00:23]} Ke5 {[%emt 0:00:12]} 39. f3 {[%emt 0:00:12]} Rc5 {[%emt 0:01:18]} 40. Rd2 {[%emt 0:01:22]} Rc3 {[%emt 0:00:26]} 41. Kf2 {[%emt 0:30:21]} b5 {[%emt 0:02:36]} 42. Ke2 {[%emt 0:00:00]} Re3+ {[%emt 0:02:36]} 43. Kf2 {[%emt 0:00:00]} Kd5 {[%emt 0:00:07]} 44. Re2 {[%emt 0:00:00]} Rc3 {[%emt 0:00:40]} 45. Re8 {[%emt 0:00:00]} Rc2+ {[%emt 0:00:20]} 1-0

[Event "Slovakia Open Piestany-A 2022"]
[Site "Piestany"]
[Date "2022.07.13"]
[Round "3"]
[White "Hradek, Matyas"]
[Black "Walek, Petr"]
[Result "0-1"]
[ECO "B36"]
[WhiteElo "1888"]
[BlackElo "2237"]
[Annotator "ChessBase"]
[PlyCount "54"]
[EventDate "2022.07.12"]
[EventType "swiss"]
[EventCountry "SVK"]
[SourceTitle "playchess.com"]
[Source "ChessBase"]
[SourceQuality "1"]
[TimeControl "40/5400+30:1800+30"]

1. e4 {[%emt 0:00:11]} c5 {[%emt 0:00:14]} 2. Nf3 {[%emt 0:00:12]} g6 {[%emt 0:00:05]} 3. c4 {[%emt 0:00:28]} Nc6 {[%emt 0:00:10]} 4. d4 {[%emt 0:00:24]} cxd4 {[%emt 0:00:04]} 5. Nxd4 {[%emt 0:00:09]} Nf6 {[%emt 0:00:05]} 6. Nc3 {[%emt 0:00:12]} d6 {[%emt 0:00:11]} 7. Be2 {[%emt 0:01:48]} Nxd4 {[%emt 0:00:11]} 8. Qxd4 {[%emt 0:00:41]} Bg7 {[%emt 0:00:06]} 9. Qd3 {[%emt 0:04:07]} Be6 {[%emt 0:12:31]} 10. O-O {[%emt 0:05:37]} Nd7 {[%emt 0:04:57]} 11. f4 {[%emt 0:15:30]} Rc8 {[%emt 0:12:17]} 12. Nd5 {[%emt 0:06:48]} Nc5 {[%emt 0:08:07]} 13. Qf3 {[%emt 0:07:14]} a5 {[%emt 0:08:01]} 14. f5 {[%emt 0:05:57]} Bxd5 {[%emt 0:00:54]} 15. exd5 {[%emt 0:07:53]} O-O {[%emt 0:02:59]} 16. Rb1 {[%emt 0:02:14]} Nd7 {[%emt 0:10:19]} 17. b3 {[%emt 0:07:19]} Ne5 {[%emt 0:11:51]} 18. Qh3 {[%emt 0:01:24]} b5 {[%emt 0:01:47]} 19. Bg4 {[%emt 0:05:43]} Nxg4 {[%emt 0:10:38]} 20. Qxg4 {[%emt 0:00:16]} Qb6+ {[%emt 0:00:11]} 21. Kh1 {[%emt 0:00:37]} bxc4 {[%emt 0:00:17]} 22. Bg5 {[%emt 0:00:56]} c3 {[%emt 0:04:38]} 23. Bxe7 {[%emt 0:01:35]} c2 {[%emt 0:00:57]} 24. Rbc1 {[%emt 0:01:34]} Rfe8 {[%emt 0:00:41]} 25. fxg6 {[%emt 0:01:45]} hxg6 {[%emt 0:02:10]} 26. Rxf7 {[%emt 0:00:52]} Qe3 {[%emt 0:00:34]} 27. Bg5 {[%emt 0:01:57]} Qxc1+ {[%emt 0:00:11]} 0-1

[Event "Slovakia Open Piestany-A 2022"]
[Site "Piestany"]
[Date "2022.07.13"]
[Round "3.1"]
[White "Kostolansky, Sebastian Lukas"]
[Black "Moroni, Luca Jr"]
[Result "0-1"]
[ECO "C79"]
[WhiteElo "2406"]
[BlackElo "2584"]
[Annotator "ChessBase"]
[PlyCount "52"]
[EventDate "2022.07.12"]
[EventType "swiss"]
[EventCountry "SVK"]
[SourceTitle "playchess.com"]
[Source "ChessBase"]
[SourceQuality "1"]
[TimeControl "40/5400+30:1800+30"]

1. e4 {[%emt 0:00:09]} e5 {[%emt 0:02:27]} 2. Nf3 {[%emt 0:00:10]} Nc6 {[%emt 0:00:03]} 3. Bb5 {[%emt 0:00:07]} a6 {[%emt 0:00:03]} 4. Ba4 {[%emt 0:00:05]} Nf6 {[%emt 0:00:04]} 5. O-O {[%emt 0:00:07]} d6 {[%emt 0:00:02]} 6. c4 {[%emt 0:09:44]} Be7 {[%emt 0:03:47]} 7. d4 {[%emt 0:01:13]} exd4 {[%emt 0:02:33]} 8. Nxd4 {[%emt 0:00:06]} Bd7 {[%emt 0:00:06]} 9. Nxc6 {[%emt 0:05:19]} bxc6 {[%emt 0:11:17]} 10. Nc3 {[%emt 0:00:06]} O-O {[%emt 0:02:10]} 11. c5 {[%emt 0:18:22]} Qb8 {[%emt 0:06:22]} 12. Re1 {[%emt 0:11:54]} Re8 {[%emt 0:11:33]} 13. Bf4 {[%emt 0:17:02]} Qxb2 {[%emt 0:06:42]} 14. Qf3 {[%emt 0:04:42]} Qb4 {[%emt 0:06:24]} 15. cxd6 {[%emt 0:07:55]} cxd6 {[%emt 0:00:40]} 16. Rab1 {[%emt 0:02:00]} Qa5 {[%emt 0:03:00]} 17. e5 {[%emt 0:03:06]} dxe5 {[%emt 0:00:27]} 18. Rxe5 {[%emt 0:04:27]} Bc5 {[%emt 0:02:16]} 19. Rg5 {[%emt 0:04:26]} Bg4 {[%emt 0:04:20]} 20. Rxg7+ {[%emt 0:02:54]} Kh8 {[%emt 0:00:53]} 21. Rxg4 {[%emt 0:05:15]} Nxg4 {[%emt 0:00:09]} 22. Bxc6 {[%emt 0:01:01]} Bxf2+ {[%emt 0:03:02]} 23. Kf1 {[%emt 0:00:05]} Qf5 {[%emt 0:07:09]} 24. Be4 {[%emt 0:01:09]} Qe6 {[%emt 0:00:39]} 25. h3 {[%emt 0:01:00]} Qc4+ {[%emt 0:00:57]} 26. Qd3 {[%emt 0:00:35]} Rxe4 {[%emt 0:00:10]} 0-1

[Event "Slovakia Open Piestany-A 2022"]
[Site "Piestany"]
[Date "2022.07.13"]
[Round "3.2"]
[White "Hrbek, Stepan"]
[Black "Omelja, Artem"]
[Result "0-1"]
[ECO "D37"]
[WhiteElo "2272"]
[BlackElo "2478"]
[Annotator "ChessBase"]
[PlyCount "76"]
[EventDate "2022.07.12"]
[EventType "swiss"]
[EventCountry "SVK"]
[SourceTitle "playchess.com"]
[Source "ChessBase"]
[SourceQuality "1"]
[TimeControl "40/5400+30:1800+30"]

1. d4 {[%emt 0:00:06]} d5 {[%emt 0:08:48]} 2. c4 {[%emt 0:00:12]} e6 {[%emt 0:00:09]} 3. Nc3 {[%emt 0:00:26]} Be7 {[%emt 0:00:39]} 4. Nf3 {[%emt 0:00:09]} Nf6 {[%emt 0:00:14]} 5. Bf4 {[%emt 0:00:09]} O-O {[%emt 0:00:23]} 6. e3 {[%emt 0:00:08]} b6 {[%emt 0:02:03]} 7. Bd3 {[%emt 0:00:17]} dxc4 {[%emt 0:02:29]} 8. Bxc4 {[%emt 0:00:08]} Ba6 {[%emt 0:00:19]} 9. Bxa6 {[%emt 0:00:10]} Nxa6 {[%emt 0:00:08]} 10. Qe2 {[%emt 0:02:15]} Qc8 {[%emt 0:00:19]} 11. O-O {[%emt 0:00:06]} Qb7 {[%emt 0:02:04]} 12. a3 {[%emt 0:02:36]} c5 {[%emt 0:00:46]} 13. Rac1 {[%emt 0:11:19]} Rac8 {[%emt 0:04:49]} 14. Rc2 {[%emt 0:03:22]} Nd5 {[%emt 0:25:35]} 15. Nxd5 {[%emt 0:09:03]} exd5 {[%emt 0:00:15]} 16. dxc5 {[%emt 0:00:13]} bxc5 {[%emt 0:01:52]} 17. Be5 {[%emt 0:00:32]} Rfd8 {[%emt 0:05:33]} 18. Rd1 {[%emt 0:00:43]} c4 {[%emt 0:01:32]} 19. Bd4 {[%emt 0:02:35]} Nc7 {[%emt 0:01:03]} 20. h3 {[%emt 0:11:26]} Ne6 {[%emt 0:00:25]} 21. Qe1 {[%emt 0:02:20]} a6 {[%emt 0:01:35]} 22. Qa5 {[%emt 0:03:21]} Nxd4 {[%emt 0:03:58]} 23. Nxd4 {[%emt 0:00:50]} Bf6 {[%emt 0:00:08]} 24. Rdd2 {[%emt 0:06:05]} g6 {[%emt 0:00:57]} 25. Ne2 {[%emt 0:02:05]} Rb8 {[%emt 0:08:23]} 26. Qc5 {[%emt 0:06:49]} Qb5 {[%emt 0:00:30]} 27. Qc7 {[%emt 0:04:44]} Rb7 {[%emt 0:00:46]} 28. Qf4 {[%emt 0:01:44]} Kg7 {[%emt 0:11:07]} 29. Qf3 {[%emt 0:14:51]} Rbd7 {[%emt 0:03:49]} 30. Nd4 {[%emt 0:08:12]} Qa4 {[%emt 0:00:16]} 31. Ne2 {[%emt 0:01:38]} h5 {[%emt 0:02:05]} 32. g4 {[%emt 0:02:03]} hxg4 {[%emt 0:00:38]} 33. hxg4 {[%emt 0:00:06]} Qc6 {[%emt 0:02:42]} 34. Rc1 {[%emt 0:02:38]} Be5 {[%emt 0:01:20]} 35. Kg2 {[%emt 0:02:57]} Qe6 {[%emt 0:02:28]} 36. Nf4 {[%emt 0:01:11]} Qf6 {[%emt 0:00:13]} 37. Rcc2 {[%emt 0:00:44]} Bxb2 {[%emt 0:01:28]} 38. Nxd5 {[%emt 0:00:23]} Qxf3+ {[%emt 0:01:19]} 0-1

[Event "Slovakia Open Piestany-A 2022"]
[Site "Piestany"]
[Date "2022.07.13"]
[Round "3.3"]
[White "Kozak, Antoni"]
[Black "Gretarsson, Helgi Ass"]
[Result "1-0"]
[ECO "A09"]
[WhiteElo "2475"]
[BlackElo "2472"]
[Annotator "ChessBase"]
[PlyCount "77"]
[EventDate "2022.07.12"]
[EventType "swiss"]
[EventCountry "SVK"]
[SourceTitle "playchess.com"]
[Source "ChessBase"]
[SourceQuality "1"]
[TimeControl "40/5400+30:1800+30"]

1. Nf3 {[%emt 0:05:59]} d5 {[%emt 0:00:03]} 2. e3 {[%emt 0:00:04]} Nf6 {[%emt 0:02:32]} 3. c4 {[%emt 0:00:04]} dxc4 {[%emt 0:00:38]} 4. Bxc4 {[%emt 0:00:05]} e6 {[%emt 0:00:03]} 5. b3 {[%emt 0:05:12]} c5 {[%emt 0:00:55]} 6. Bb2 {[%emt 0:01:20]} a6 {[%emt 0:00:14]} 7. Be2 {[%emt 0:05:57]} Nc6 {[%emt 0:01:16]} 8. d3 {[%emt 0:01:50]} Be7 {[%emt 0:01:55]} 9. Nbd2 {[%emt 0:04:24]} O-O {[%emt 0:01:40]} 10. a3 {[%emt 0:05:55]} b6 {[%emt 0:13:42]} 11. Qc2 {[%emt 0:10:03]} Bb7 {[%emt 0:01:27]} 12. Rg1 {[%emt 0:00:21]} Nd5 {[%emt 0:20:47]} 13. g4 {[%emt 0:00:56]} Bf6 {[%emt 0:29:00]} 14. g5 {[%emt 0:05:43]} Bxb2 {[%emt 0:00:03]} 15. Qxb2 {[%emt 0:00:03]} a5 {[%emt 0:07:37]} 16. h4 {[%emt 0:11:58]} f5 {[%emt 0:00:11]} 17. gxf6 {[%emt 0:06:56]} Qxf6 {[%emt 0:00:05]} 18. Qxf6 {[%emt 0:00:09]} Rxf6 {[%emt 0:00:01]} 19. Ng5 {[%emt 0:05:59]} Ba6 {[%emt 0:09:26]} 20. Rc1 {[%emt 0:06:27]} Nd8 {[%emt 0:05:10]} 21. Nc4 {[%emt 0:01:31]} Ra7 {[%emt 0:01:06]} 22. Bg4 {[%emt 0:08:53]} Re7 {[%emt 0:01:08]} 23. Ke2 {[%emt 0:00:51]} Rh6 {[%emt 0:01:39]} 24. h5 {[%emt 0:01:48]} e5 {[%emt 0:00:09]} 25. Bf3 {[%emt 0:01:24]} Nf6 {[%emt 0:00:06]} 26. Kd2 {[%emt 0:05:07]} Bxc4 {[%emt 0:00:54]} 27. bxc4 {[%emt 0:00:28]} Nf7 {[%emt 0:00:24]} 28. Rb1 {[%emt 0:01:31]} Nxg5 {[%emt 0:01:37]} 29. Rxg5 {[%emt 0:00:02]} e4 {[%emt 0:00:20]} 30. dxe4 {[%emt 0:00:31]} Nxe4+ {[%emt 0:00:31]} 31. Bxe4 {[%emt 0:00:05]} Rxe4 {[%emt 0:00:01]} 32. Kd3 {[%emt 0:00:10]} Rh4 {[%emt 0:01:00]} 33. Rbg1 {[%emt 0:00:15]} Rd6+ {[%emt 0:00:02]} 34. Kc3 {[%emt 0:01:42]} Rd7 {[%emt 0:00:16]} 35. Rb1 {[%emt 0:00:00]} h6 {[%emt 0:01:05]} 36. Rd5 {[%emt 0:00:13]} Rf7 {[%emt 0:00:55]} 37. Rxb6 {[%emt 0:00:16]} Rxf2 {[%emt 0:00:01]} 38. Rxc5 {[%emt 0:00:42]} Ra2 {[%emt 0:00:35]} 39. Rxa5 {[%emt 0:00:13]} 1-0

[Event "Slovakia Open Piestany-A 2022"]
[Site "Piestany"]
[Date "2022.07.13"]
[Round "3.4"]
[White "Demchenko, Anton"]
[Black "Samunenkov, Ihor"]
[Result "1-0"]
[ECO "B30"]
[WhiteElo "2653"]
[BlackElo "2448"]
[Annotator "ChessBase"]
[PlyCount "71"]
[EventDate "2022.07.12"]
[EventType "swiss"]
[EventCountry "SVK"]
[SourceTitle "playchess.com"]
[Source "ChessBase"]
[SourceQuality "1"]
[TimeControl "40/5400+30:1800+30"]

1. e4 {[%emt 0:00:05]} c5 {[%emt 0:00:08]} 2. Nf3 {[%emt 0:00:06]} Nc6 {[%emt 0:00:09]} 3. Bb5 {[%emt 0:00:06]} e6 {[%emt 0:00:12]} 4. Bxc6 {[%emt 0:02:10]} bxc6 {[%emt 0:00:09]} 5. d3 {[%emt 0:00:03]} Ne7 {[%emt 0:00:18]} 6. Qe2 {[%emt 0:01:26]} d6 {[%emt 0:00:18]} 7. e5 {[%emt 0:00:17]} Nf5 {[%emt 0:00:14]} 8. exd6 {[%emt 0:01:50]} Bxd6 {[%emt 0:00:49]} 9. Nbd2 {[%emt 0:04:56]} O-O {[%emt 0:11:11]} 10. c3 {[%emt 0:06:55]} e5 {[%emt 0:08:39]} 11. Ne4 {[%emt 0:05:06]} Re8 {[%emt 0:10:51]} 12. g4 {[%emt 0:06:23]} Ne7 {[%emt 0:01:59]} 13. Nfd2 {[%emt 0:00:25]} Nd5 {[%emt 0:05:42]} 14. Nc4 {[%emt 0:00:17]} Bf8 {[%emt 0:00:17]} 15. h4 {[%emt 0:08:15]} Qd7 {[%emt 0:06:50]} 16. Rg1 {[%emt 0:06:36]} Ba6 {[%emt 0:02:35]} 17. Be3 {[%emt 0:04:24]} Nf4 {[%emt 0:06:19]} 18. Bxf4 {[%emt 0:00:07]} Bxc4 {[%emt 0:00:18]} 19. dxc4 {[%emt 0:00:51]} exf4 {[%emt 0:00:35]} 20. f3 {[%emt 0:00:14]} Kh8 {[%emt 0:11:01]} 21. Rd1 {[%emt 0:03:56]} Qe7 {[%emt 0:05:00]} 22. h5 {[%emt 0:02:33]} f5 {[%emt 0:07:17]} 23. gxf5 {[%emt 0:00:06]} Qh4+ {[%emt 0:00:06]} 24. Kd2 {[%emt 0:13:43]} Qxh5 {[%emt 0:01:19]} 25. f6 {[%emt 0:02:00]} g6 {[%emt 0:01:20]} 26. Kc2 {[%emt 0:01:44]} Qf5 {[%emt 0:07:41]} 27. Qd3 {[%emt 0:00:12]} h6 {[%emt 0:01:47]} 28. Qd7 {[%emt 0:01:53]} Rxe4 {[%emt 0:00:49]} 29. fxe4 {[%emt 0:00:10]} Qxe4+ {[%emt 0:00:35]} 30. Qd3 {[%emt 0:04:03]} Qxd3+ {[%emt 0:01:27]} 31. Kxd3 {[%emt 0:00:09]} g5 {[%emt 0:05:35]} 32. Ke4 {[%emt 0:00:10]} Kg8 {[%emt 0:00:16]} 33. Kf5 {[%emt 0:00:33]} Rb8 {[%emt 0:00:21]} 34. Kg6 {[%emt 0:01:25]} Rb7 {[%emt 0:00:13]} 35. Rd8 {[%emt 0:00:29]} Rf7 {[%emt 0:00:18]} 36. Re1 {[%emt 0:00:43]} 1-0

[Event "Slovakia Open Piestany-A 2022"]
[Site "Piestany"]
[Date "2022.07.13"]
[Round "3.5"]
[White "Donchenko, Alexander"]
[Black "Favaloro, Andrea"]
[Result "1-0"]
[ECO "E04"]
[WhiteElo "2640"]
[BlackElo "2361"]
[Annotator "ChessBase"]
[PlyCount "89"]
[EventDate "2022.07.12"]
[EventType "swiss"]
[EventCountry "SVK"]
[SourceTitle "playchess.com"]
[Source "ChessBase"]
[SourceQuality "1"]
[TimeControl "40/5400+30:1800+30"]

1. c4 {[%emt 0:00:03]} e6 {[%emt 0:01:25]} 2. g3 {[%emt 0:00:08]} d5 {[%emt 0:00:10]} 3. Bg2 {[%emt 0:00:06]} Nf6 {[%emt 0:00:13]} 4. d4 {[%emt 0:00:15]} dxc4 {[%emt 0:00:13]} 5. Qa4+ {[%emt 0:00:13]} Bd7 {[%emt 0:01:12]} 6. Qxc4 {[%emt 0:00:08]} c5 {[%emt 0:00:03]} 7. dxc5 {[%emt 0:00:34]} Bc6 {[%emt 0:00:17]} 8. Nf3 {[%emt 0:00:17]} Nbd7 {[%emt 0:00:31]} 9. Be3 {[%emt 0:00:39]} Bd5 {[%emt 0:00:34]} 10. Qc2 {[%emt 0:01:37]} Be4 {[%emt 0:00:47]} 11. Qc1 {[%emt 0:01:14]} Bxc5 {[%emt 0:00:35]} 12. Bxc5 {[%emt 0:00:09]} Rc8 {[%emt 0:00:04]} 13. b4 {[%emt 0:00:17]} b6 {[%emt 0:00:10]} 14. Nc3 {[%emt 0:01:12]} bxc5 {[%emt 0:00:13]} 15. b5 {[%emt 0:00:30]} Qa5 {[%emt 0:03:56]} 16. O-O {[%emt 0:01:15]} Bxf3 {[%emt 0:00:22]} 17. Bxf3 {[%emt 0:01:51]} Ne5 {[%emt 0:02:18]} 18. Bb7 {[%emt 0:06:19]} Rc7 {[%emt 0:14:29]} 19. Bg2 {[%emt 0:00:47]} O-O {[%emt 0:00:24]} 20. Rd1 {[%emt 0:07:23]} Rd7 {[%emt 0:11:07]} 21. Rxd7 {[%emt 0:05:07]} Nexd7 {[%emt 0:01:45]} 22. a4 {[%emt 0:10:06]} Nb6 {[%emt 0:09:59]} 23. Qd2 {[%emt 0:06:01]} c4 {[%emt 0:31:12]} 24. Ne4 {[%emt 0:15:28]} Qxd2 {[%emt 0:02:58]} 25. Nxd2 {[%emt 0:00:03]} c3 {[%emt 0:01:00]} 26. Nb3 {[%emt 0:00:21]} Rd8 {[%emt 0:06:42]} 27. a5 {[%emt 0:01:03]} c2 {[%emt 0:01:19]} 28. Ra2 {[%emt 0:01:26]} Nc4 {[%emt 0:06:56]} 29. Rxc2 {[%emt 0:01:42]} Na3 {[%emt 0:00:14]} 30. Rc5 {[%emt 0:00:58]} Nd7 {[%emt 0:00:48]} 31. Rc3 {[%emt 0:12:53]} Nxb5 {[%emt 0:00:53]} 32. Rd3 {[%emt 0:00:01]} Nc7 {[%emt 0:01:19]} 33. Bc6 {[%emt 0:00:12]} Nd5 {[%emt 0:00:12]} 34. Bxd5 {[%emt 0:00:07]} Ne5 {[%emt 0:02:05]} 35. Bc4 {[%emt 0:02:16]} Nxd3 {[%emt 0:00:07]} 36. exd3 {[%emt 0:00:03]} Kf8 {[%emt 0:00:33]} 37. f4 {[%emt 0:00:35]} Ke7 {[%emt 0:00:06]} 38. Kf2 {[%emt 0:00:06]} Kd6 {[%emt 0:01:30]} 39. Ke3 {[%emt 0:00:11]} Rb8 {[%emt 0:00:18]} 40. Kd4 {[%emt 0:01:39]} h6 {[%emt 0:00:37]} 41. h4 {[%emt 0:32:53]} f6 {[%emt 0:05:07]} 42. a6 {[%emt 0:00:00]} g5 {[%emt 0:01:26]} 43. hxg5 {[%emt 0:00:00]} hxg5 {[%emt 0:00:22]} 44. fxg5 {[%emt 0:00:00]} fxg5 {[%emt 0:00:56]} 45. Nd2 {[%emt 0:00:00]} 1-0

[Event "Slovakia Open Piestany-A 2022"]
[Site "Piestany"]
[Date "2022.07.13"]
[Round "3.6"]
[White "Schitco, Ivan"]
[Black "Czerw, Dawid"]
[Result "1-0"]
[ECO "B44"]
[WhiteElo "2490"]
[BlackElo "2391"]
[Annotator "ChessBase"]
[PlyCount "113"]
[EventDate "2022.07.12"]
[EventType "swiss"]
[EventCountry "SVK"]
[SourceTitle "playchess.com"]
[Source "ChessBase"]
[SourceQuality "1"]
[TimeControl "40/5400+30:1800+30"]

1. c4 {[%emt 0:00:04]} Nf6 {[%emt 0:00:20]} 2. Nc3 {[%emt 0:00:23]} c5 {[%emt 0:00:55]} 3. Nf3 {[%emt 0:00:26]} Nc6 {[%emt 0:01:09]} 4. d4 {[%emt 0:00:17]} cxd4 {[%emt 0:00:30]} 5. Nxd4 {[%emt 0:00:05]} e6 {[%emt 0:06:37]} 6. e4 {[%emt 0:00:15]} Bb4 {[%emt 0:01:43]} 7. Nxc6 {[%emt 0:00:20]} bxc6 {[%emt 0:00:23]} 8. Bd3 {[%emt 0:00:08]} e5 {[%emt 0:01:23]} 9. O-O {[%emt 0:00:16]} Bc5 {[%emt 0:02:39]} 10. Re1 {[%emt 0:08:00]} O-O {[%emt 0:07:37]} 11. Be3 {[%emt 0:02:07]} Bxe3 {[%emt 0:10:22]} 12. Rxe3 {[%emt 0:00:08]} Qe7 {[%emt 0:01:52]} 13. Qd2 {[%emt 0:03:48]} Rd8 {[%emt 0:02:15]} 14. Rf1 {[%emt 0:12:53]} d6 {[%emt 0:03:09]} 15. Be2 {[%emt 0:11:16]} Be6 {[%emt 0:03:17]} 16. f4 {[%emt 0:07:13]} exf4 {[%emt 0:01:38]} 17. Rxf4 {[%emt 0:00:20]} Nd7 {[%emt 0:00:46]} 18. Nd5 {[%emt 0:03:21]} cxd5 {[%emt 0:02:47]} 19. exd5 {[%emt 0:00:19]} Ne5 {[%emt 0:06:52]} 20. dxe6 {[%emt 0:01:05]} Qxe6 {[%emt 0:03:40]} 21. b3 {[%emt 0:04:25]} Qe7 {[%emt 0:11:20]} 22. Bf3 {[%emt 0:03:13]} Rac8 {[%emt 0:07:48]} 23. Bd5 {[%emt 0:01:08]} Rf8 {[%emt 0:00:13]} 24. Qf2 {[%emt 0:05:49]} g6 {[%emt 0:01:17]} 25. g4 {[%emt 0:06:30]} Kg7 {[%emt 0:02:15]} 26. Qg3 {[%emt 0:02:43]} f6 {[%emt 0:01:56]} 27. h4 {[%emt 0:02:10]} Qc7 {[%emt 0:03:33]} 28. Re2 {[%emt 0:03:29]} Rce8 {[%emt 0:01:09]} 29. Ref2 {[%emt 0:01:33]} Qc5 {[%emt 0:02:37]} 30. Kg2 {[%emt 0:00:24]} Nd7 {[%emt 0:01:39]} 31. Qc3 {[%emt 0:03:03]} Re3 {[%emt 0:01:32]} 32. Qd4 {[%emt 0:02:09]} Ne5 {[%emt 0:03:34]} 33. Rd2 {[%emt 0:01:47]} Qxd4 {[%emt 0:03:29]} 34. Rdxd4 {[%emt 0:02:51]} f5 {[%emt 0:01:26]} 35. gxf5 {[%emt 0:03:09]} gxf5 {[%emt 0:00:16]} 36. Kf2 {[%emt 0:03:48]} Rc3 {[%emt 0:00:35]} 37. Ke2 {[%emt 0:01:12]} Ng4 {[%emt 0:00:24]} 38. Kd2 {[%emt 0:01:25]} Rh3 {[%emt 0:00:49]} 39. Be6 {[%emt 0:01:20]} Rxh4 {[%emt 0:01:23]} 40. Rxd6 {[%emt 0:01:22]} Rh2+ {[%emt 0:01:39]} 41. Kc3 {[%emt 0:30:42]} Rxa2 {[%emt 0:02:07]} 42. c5 {[%emt 0:00:00]} Nf6 {[%emt 0:07:07]} 43. Bxf5 {[%emt 0:00:00]} Re8 {[%emt 0:04:26]} 44. c6 {[%emt 0:00:00]} Re3+ {[%emt 0:01:31]} 45. Bd3 {[%emt 0:00:00]} Re6 {[%emt 0:03:43]} 46. Rxe6 {[%emt 0:00:00]} Nd5+ {[%emt 0:00:05]} 47. Kd4 {[%emt 0:00:00]} Nxf4 {[%emt 0:00:05]} 48. Re7+ {[%emt 0:00:00]} Kf6 {[%emt 0:00:33]} 49. c7 {[%emt 0:00:00]} Kxe7 {[%emt 0:00:41]} 50. c8=Q {[%emt 0:00:00]} Nxd3 {[%emt 0:00:06]} 51. Kxd3 {[%emt 0:00:00]} Kd6 {[%emt 0:00:21]} 52. b4 {[%emt 0:00:00]} Ra3+ {[%emt 0:00:23]} 53. Kc4 {[%emt 0:00:00]} h5 {[%emt 0:00:14]} 54. Qc5+ {[%emt 0:00:00]} Kd7 {[%emt 0:00:06]} 55. b5 {[%emt 0:00:00]} Ra2 {[%emt 0:00:19]} 56. Kb3 {[%emt 0:00:00]} Ra5 {[%emt 0:00:18]} 57. Kb4 {[%emt 0:00:00]} 1-0

[Event "Slovakia Open Piestany-A 2022"]
[Site "Piestany"]
[Date "2022.07.13"]
[Round "3.7"]
[White "Sahidi, Samir"]
[Black "Farkas, Gabor"]
[Result "1-0"]
[ECO "D32"]
[WhiteElo "2462"]
[BlackElo "2335"]
[Annotator "ChessBase"]
[PlyCount "75"]
[EventDate "2022.07.12"]
[EventType "swiss"]
[EventCountry "SVK"]
[SourceTitle "playchess.com"]
[Source "ChessBase"]
[SourceQuality "1"]
[TimeControl "40/5400+30:1800+30"]

1. d4 {[%emt 0:00:07]} d5 {[%emt 0:09:06]} 2. c4 {[%emt 0:00:09]} e6 {[%emt 0:00:06]} 3. Nf3 {[%emt 0:00:30]} c5 {[%emt 0:01:04]} 4. cxd5 {[%emt 0:01:37]} exd5 {[%emt 0:00:14]} 5. Nc3 {[%emt 0:02:08]} Nc6 {[%emt 0:00:24]} 6. Bg5 {[%emt 0:00:26]} Be7 {[%emt 0:08:47]} 7. Bxe7 {[%emt 0:01:18]} Ngxe7 {[%emt 0:00:12]} 8. dxc5 {[%emt 0:00:59]} d4 {[%emt 0:01:40]} 9. Ne4 {[%emt 0:00:22]} O-O {[%emt 0:00:37]} 10. Rc1 {[%emt 0:11:31]} Qd5 {[%emt 0:05:23]} 11. Nd6 {[%emt 0:00:47]} Qxa2 {[%emt 0:07:54]} 12. Qd2 {[%emt 0:00:32]} Nf5 {[%emt 0:12:39]} 13. Nxc8 {[%emt 0:01:22]} Raxc8 {[%emt 0:01:49]} 14. g3 {[%emt 0:02:42]} Rfe8 {[%emt 0:07:32]} 15. Bh3 {[%emt 0:01:36]} d3 {[%emt 0:03:51]} 16. Qxd3 {[%emt 0:05:52]} Qxb2 {[%emt 0:02:28]} 17. O-O {[%emt 0:04:16]} Nfd4 {[%emt 0:00:05]} 18. Nxd4 {[%emt 0:04:21]} Nxd4 {[%emt 0:01:04]} 19. Rb1 {[%emt 0:02:20]} Nxe2+ {[%emt 0:00:10]} 20. Kg2 {[%emt 0:00:47]} Qc3 {[%emt 0:01:55]} 21. Qxc3 {[%emt 0:00:47]} Nxc3 {[%emt 0:00:08]} 22. Bxc8 {[%emt 0:00:08]} Rxc8 {[%emt 0:01:07]} 23. Rxb7 {[%emt 0:00:32]} g6 {[%emt 0:00:04]} 24. Rc1 {[%emt 0:02:34]} Rxc5 {[%emt 0:00:22]} 25. Rxa7 {[%emt 0:00:20]} Ne4 {[%emt 0:01:12]} 26. Rxc5 {[%emt 0:05:12]} Nxc5 {[%emt 0:00:05]} 27. Kf3 {[%emt 0:00:57]} Ne6 {[%emt 0:01:32]} 28. Ke4 {[%emt 0:00:42]} Kg7 {[%emt 0:00:19]} 29. f4 {[%emt 0:03:23]} h5 {[%emt 0:02:37]} 30. f5 {[%emt 0:03:44]} Ng5+ {[%emt 0:06:27]} 31. Kf4 {[%emt 0:03:35]} Nh7 {[%emt 0:02:58]} 32. Ke5 {[%emt 0:02:18]} g5 {[%emt 0:00:43]} 33. Ra6 {[%emt 0:03:12]} Nf8 {[%emt 0:01:55]} 34. Rd6 {[%emt 0:00:21]} Nh7 {[%emt 0:01:14]} 35. f6+ {[%emt 0:00:49]} Kg6 {[%emt 0:01:08]} 36. Rd8 {[%emt 0:00:07]} g4 {[%emt 0:00:27]} 37. Rg8+ {[%emt 0:00:08]} Kh6 {[%emt 0:00:09]} 38. Kf5 {[%emt 0:00:19]} 1-0